Cogmind - Beta 11 @@@ ROGUE MODE // 2022.04.18 @ 23:08:35 Player: RNGesus Result: Destroyed by as-47253 with Assembled Heavy Rifle Performance ------------- Evolutions (0) 0 Regions Visited (2) 400 Robots Destroyed (17) 85 Value Destroyed (309) 309 Prototype IDs (0) 0 Alien Tech Used (0) 0 Bonus (0) 0 TOTAL SCORE: 794 Bonus ------- None Cogmind --------- Core Integrity 0/250 Matter 240/300 Energy 88/100 System Corruption 3% Temperature Cool (0) Movement Treading (240) Ox1 Location -10/Mines Parts ------- > --- POWER (1) -------- (None) > --- PROPULSION (2) --- Light Treads Improved Treads > --- UTILITY (2) ------ Huge Storage Unit > --- WEAPON (2) ------- Shotgun > --- INVENTORY (25) --- Improved Treads Improved Treads Improved Treads Improved Treads Improved Treads Improved Treads Improved Treads Improved Treads Improved Treads Compact Wheel Improved Heat Sink Large Storage Unit Experimental Sensor Array Seismic Detector Transport Network Coupler Weapon Shielding Light Armor Plating Light Armor Plating Medium Laser Medium Laser Light Assault Rifle Shotgun Peak State ------------ > --- POWER ------------ Light Ion Engine > --- PROPULSION ------- Improved Treads Improved Treads > --- UTILITY ---------- Huge Storage Unit Core Shielding > --- WEAPON ----------- Shotgun Shotgun > --- INVENTORY -------- Light Treads Improved Treads Improved Treads Improved Treads Improved Treads Improved Treads Improved Treads Improved Treads Improved Treads Improved Treads Improved Treads Compact Wheel Improved Heat Sink Large Storage Unit Experimental Sensor Array Seismic Detector Transport Network Coupler Weapon Shielding Light Armor Plating EM Pulse Gun Medium Laser Medium Laser Light Assault Rifle Shotgun Shotgun [Rating: 15] Favorites ----------- Power Light Ion Engine Engine Light Ion Engine Propulsion Improved Treads Treads Improved Treads Utility Core Shielding Storage Huge Storage Unit Protection Core Shielding Weapon Shotgun Energy Gun Medium Laser Ballistic Gun Shotgun Build | -11 -10 -10 ------- Run | Scr Mat Min Slots Evolved . | . . . Power . | . . . Propulsion . | . . . Utility . | . . . Weapon . | . . . Parts Attached 21 | 6 12 3 Power 2 | 1 1 . Engine 2 | 1 1 . Core . | . . . Reactor . | . . . Propulsion 8 | 2 4 2 Treads 8 | 2 4 2 Leg . | . . . Wheel . | . . . Hover . | . . . Flight . | . . . Utility 4 | 1 3 . Device . | . . . Storage 3 | 1 2 . Processor . | . . . Hackware . | . . . Protection 1 | . 1 . Artifact . | . . . Weapon 7 | 2 4 1 Energy Gun 2 | 2 . . Energy Cannon . | . . . Ballistic Gun 5 | . 4 1 Ballistic Cannon . | . . . Launcher . | . . . Special Weapon . | . . . Impact Weapon . | . . . Slashing Weapon . | . . . Piercing Weapon . | . . . Special Melee Weapon . | . . . Unidentified Prototypes . | . . . Parts Lost 7 | . 1 6 Power 2 | . 1 1 Propulsion 2 | . . 2 Utility 1 | . . 1 Weapon 2 | . . 2 Highest Loss Streak 6 | . 1 6 To Critical Strikes . | . . . Average Slot Usage (%) 98 | . 98 98 Engine 13 | . 14 13 Treads 28 | . 28 28 Storage 14 | . 14 14 Protection 12 | . 12 13 Energy Gun 5 | . 6 . Ballistic Gun 22 | . 21 27 Naked Turns . | . . . Heaviest Build 90 | 14 90 90 Greatest Support 46 | 40 46 46 Greatest Overweight (x) 3 | 1 3 2 Average Overweight (x) . | . . 1 Largest Inventory Capacity 25 | 8 25 25 Average Capacity 20 | 6 20 25 Most Carried 25 | 4 24 25 Average Carried 18 | 1 17 24 Final Capacity 25 | 8 25 25 Final Carried 24 | 2 24 22 Class Distribution -------------------- 100% | Mutant Dominant Class ---------------- Mutant | -10/Materials Mutant | -10/Mines Resources | -11 -10 -10 ----------- Run | Scr Mat Min Matter Collected 538 | 238 263 37 Remotely . | . . . Salvage Created 514 | . 482 32 Parts 31 | . 31 . Haulers Intercepted 2 | . 2 . Recyclers Shooed 1 | . 1 . Parts Field Recycled . | . . . Retrieved Matter . | . . . Parts Self-Destructed . | . . . Prevented . | . . . Kills | -11 -10 -10 ------- Run | Scr Mat Min Combat Hostiles Destroyed 12 | . 9 3 Guns 12 | . 9 3 Classes Destroyed 8 | . 7 1 Worker 2 | . 2 . Builder 1 | . 1 . Hauler 2 | . 2 . Recycler 1 | . 1 . Operator 2 | . 2 . Swarmer 3 | . 3 . Grunt 6 | . 6 . Assembled 3 | . . 3 Best Kill Streak 3 | . 3 3 Combat Bots Only 3 | . 3 3 Max Kills in Single Turn 2 | . 1 2 Gunslinging . | . . . Exploded . | . . . Melee . | . . . Uniques/NPCs Destroyed . | . . . Combat | -11 -10 -10 -------- Run | Scr Mat Min Damage Taken 1346 | . 599 747 Core 263 | . 119 144 Absorbed by Shields . | . . . Redirected to Shielding 39 | . 19 20 Core Remaining (%) 100 | 100 . . Volleys Fired 67 | . 61 6 Largest 2 | . 2 2 Hottest 100 | . 100 46 Shots Fired 135 | . 123 12 Gun 135 | . 123 12 Cannon . | . . . Launcher . | . . . Special . | . . . Kinetic 75 | . 63 12 Thermal 60 | . 60 . Explosive . | . . . Electromagnetic . | . . . Robot Hit Streak 10 | . 10 3 Robot Miss Streak 5 | . 4 5 Penetration Max . | . . . Secondary Targets 1 | . 1 . Max Gunslinging Chain 1 | . 1 . Shots Hit Robots 89 | . 81 8 Core Hits 39 | . 33 6 Critical Kills . | . . . Critical Parts Destroyed . | . . . Critical Strikes 2 | . 2 . Burn 2 | . 2 . Melee Attacks . | . . . Impact . | . . . Slashing . | . . . Piercing . | . . . Sneak Attacks . | . . . Combat Hostiles . | . . . Follow-up Attacks . | . . . Damage Inflicted 1157 | . 984 173 Guns 1157 | . 984 173 Cannons . | . . . Explosions . | . . . Melee . | . . . Ramming . | . . . Kinetic 656 | . 483 173 Thermal 501 | . 501 . Explosive . | . . . Electromagnetic . | . . . Impact . | . . . Slashing . | . . . Piercing . | . . . Highest Corruption 3 | . 2 3 Average Corruption 2 | . 2 2 Corruption Purged . | . . . Corruption Blocked . | . . . Effects 13 | . 12 1 Message Errors 2 | . 1 1 Matter Fused 4 | . 4 . Heat Flow Errors 1 | . 1 . Energy Discharges 1 | . 1 . Data Loss (minor) 2 | . 2 . Data Loss (major) 2 | . 2 . Misfires 1 | . 1 . Overload Shots . | . . . Overflow Damage . | . . . Projectiles . | . . . Explosions . | . . . Melee . | . . . Knockbacks . | . . . Impact . | . . . Kinetic . | . . . Secondary . | . . . Self-Inflicted Damage . | . . . Shots . | . . . Rammed . | . . . Targets Rammed . | . . . Kicked . | . . . Crushed . | . . . Highest Temperature 482 | . 482 30 Average Temperature 122 | . 129 14 Received Heat Transfer 430 | . 261 169 Effects 3 | . 3 . Shutdowns 1 | . 1 . Energy Bleed 2 | . 2 . Siege Activations . | . . . Robots Corrupted . | . . . Combat Hostiles . | . . . Parts Fried . | . . . Impact Corruptions . | . . . Robots Melted . | . . . Combat Hostiles . | . . . Parts Melted 5 | . 5 . Heat Transferred 1628 | . 1628 . Parts Sabotaged . | . . . Parts Stolen . | . . . Parts Stripped . | . . . Power Chain Reactions . | . . . Missiles Intercepted . | . . . Alert | -11 -10 -10 ------- Run | Scr Mat Min Peak Influence 150 | . 150 5 Initial 5 | . . 5 Average 31 | . 39 4 Maximum Alert Level . | . . . Low Security (%) 100 | 100 100 100 Level 1 . | . . . Level 2 . | . . . Level 3 . | . . . Level 4 . | . . . Level 5 . | . . . High Security . | . . . Max Security . | . . . Squads Dispatched 2 | . 2 . Investigation . | . . . Extermination . | . . . Reinforcement 2 | . 2 . Assault . | . . . Garrison . | . . . Intercept . | . . . Searches Triggered . | . . . Construction Impeded . | . . . Haulers Reinforced . | . . . Active Scanning Responses . | . . . Cargo Convoy Interrupts . | . . . Stealth | -11 -10 -10 --------- Run | Scr Mat Min Distress Signals 3 | . 3 . Communications Jammed . | . . . Distress Signals . | . . . Times Spotted 46 | . 28 18 Peak Tracking Total 11 | . 6 11 Tactical Retreats 1 | . 1 . Traps | -11 -10 -10 ------- Run | Scr Mat Min Traps Triggered 3 | . 3 . Indirectly . | . . . Trap Hack Attempts . | . . . Triggered . | . . . Disarmed . | . . . Reprogrammed . | . . . Reused . | . . . Traps Extracted . | . . . Installed . | . . . Triggered . | . . . Machines | -11 -10 -10 ---------- Run | Scr Mat Min Machines Disabled . | . . . Max in Single Turn . | . . . Machines Sabotaged . | . . . Garrisons Compromised . | . . . Overloaded Fab Kills . | . . . Hacking | -11 -10 -10 --------- Run | Scr Mat Min Machines Accessed 2 | . 2 . Terminals 2 | . 2 . Fabricators . | . . . Repair Stations . | . . . Recycling Units . | . . . Scanalyzers . | . . . Garrison Access . | . . . Total Hacks 5 | . 5 . Successful 3 | . 3 . Failed 2 | . 2 . Catastrophic . | . . . Database Lockouts . | . . . Manual . | . . . Terminals 5 | . 5 . Fabricators . | . . . Repair Stations . | . . . Recycling Units . | . . . Scanalyzers . | . . . Garrison Access . | . . . Terminal Hacks 3 | . 3 . Alert Level 1 | . 1 . Locate Traps 1 | . 1 . Hauler Manifests 1 | . 1 . Fabricator Hacks . | . . . Repair Station Hacks . | . . . Recycling Unit Hacks . | . . . Scanalyzer . | . . . Garrison Access Hacks . | . . . Unauthorized Hacks . | . . . Terminals . | . . . Fabricators . | . . . Repair Stations . | . . . Recycling Units . | . . . Scanalyzers . | . . . Garrison Access . | . . . Data Cores Recovered . | . . . Used . | . . . Hacking Detections 1 | . 1 . Full Trace Events . | . . . Feedback Events . | . . . Feedback Blocked . | . . . Robot Schematics Acquired . | . . . Robots Built . | . . . Authchips . | . . . Time . | . . . Total Robot Build Rating . | . . . Part Schematics Acquired . | . . . Parts Built . | . . . Authchips . | . . . Time . | . . . Total Part Build Rating . | . . . Parts Repaired . | . . . Time . | . . . Parts Recycled . | . . . Recycled Matter . | . . . Retrieved Matter . | . . . Retrieved Components . | . . . Parts Scanalyzed . | . . . Part Schematics Acquired . | . . . Parts Damaged . | . . . Bothacking | -11 -10 -10 ------------ Run | Scr Mat Min Used RIF Installer . | . . . Robots Hacked . | . . . Non-combat . | . . . Combat . | . . . Robot Hacks Applied . | . . . Relay Couplers Released . | . . . Fabnet Peak Effective % . | . . . Robots Rewired . | . . . Allies Hacked . | . . . Hacks Repelled . | . . . Allies | -11 -10 -10 -------- Run | Scr Mat Min Total Allies 2 | . . 2 Largest Group 2 | . . 2 Highest-Rated Group 47 | . . 47 Highest-Rated Ally 31 | . . 31 Total Orders . | . . . Ally Attacks 2 | . . 2 Total Damage 73 | . . 73 Kills . | . . . Allies Corrupted . | . . . Allies Melted . | . . . Intel | -11 -10 -10 ------- Run | Scr Mat Min Robot Analysis Total . | . . . Derelict Logs Recovered 1 | . . 1 Drone Launches . | . . . Drone Recoveries . | . . . Exploration | -11 -10 -10 ------------- Run | Scr Mat Min Turns Passed 2422 | 67 1876 479 Spaces Moved 1020 | 44 787 189 Core 22 | 22 . . Treads 998 | 22 787 189 Legs . | . . . Wheels . | . . . Hover . | . . . Flight . | . . . Fastest Speed 50 | 50 160 240 Average Speed 210 | 125 208 240 Slowest Speed 400 | 160 400 320 Overloaded Moves . | . . . Propulsion Burnouts . | . . . Robots Hopped . | . . . Cave-ins Triggered . | . . . Exploration Rate (%) 50 | 5 99 48 Regions Visited 2 Branch Regions 1 Pre-discovered Areas . | . . . Known Exits Taken . | . . . Unknown Exits Taken 2 | 1 1 . Scrap Searched 1 | . . 1 Spaces Dug . | . . . Terrain Destroyed . | . . . Melee . | . . . Projectile . | . . . AOE . | . . . Terrain Rammed . | . . . Walls Destroyed . | . . . Machines Disabled . | . . . Actions | -11 -10 -10 --------- Run | Scr Mat Min Total 1165 | 54 908 203 Wait 24 | . 24 . Move 1018 | 43 786 189 Hop . | . . . Pick Up 30 | 5 22 3 Fast Attach 7 | 3 4 . Attach 7 | 3 1 3 Detach . | . . . Swap 7 | . 7 . Drop 5 | . 3 2 Fire 67 | . 61 6 Melee . | . . . Ram . | . . . Kick . | . . . Crush . | . . . Escape Stasis . | . . . Rewire . | . . . Trap . | . . . Miscellaneous . | . . . Route ------- -11/Scrapyard -10/Materials (discovered 4 exits: [*Mat x3] / [*Min]) -10/Mines History --------- Turn | Location | Event 7 | -11/Scrapyard | Discovered new exit (range 16) 68 | -11/Scrapyard | Entered Materials 303 | -10/Materials | Build established: Mutant 1132 | -10/Materials | Discovered new exit (range 14) 1351 | -10/Materials | Discovered new exit (range 14) 1631 | -10/Materials | Discovered new exit (range 16) 1806 | -10/Materials | Discovered new exit (range 11) 1944 | -10/Materials | Entered Mines 2046 | -10/Mines | Learned Materials terminal intel 2265 | -10/Mines | Found a damaged Exp. Sensor Array with a note attached 2270 | -10/Mines | Found Prototype Device 2378 | -10/Mines | Assembled infested the area 2383 | -10/Mines | Assisted by a Guerilla fighting off Assembled 2397 | -10/Mines | Core integrity fell below 50% 2410 | -10/Mines | Core integrity fell below 20% 2423 | -10/Mines | Destroyed by as-47253 with Assembled Heavy Rifle Last Messages --------------- 02400_ as-08970 destroyed. 02401_ The unstable cave ceiling collapses. 02402_ Lgt. Ion Engine destroyed. 02402_ D-53 Grenadier destroyed. 02402_ K-01 Serf destroyed. 02404_ Imp. Treads destroyed. 02404_ D-53 Grenadier destroyed. 02404_ as-22714 destroyed. 02404_ as-58076 destroyed. 02407_ The unstable cave ceiling collapses. 02412_ Destroyed Asb. F-torch. 02417_ The unstable cave ceiling collapses. 02417_ Core Shielding destroyed. 02417_ System corrupted by crushing effect (+1). 02418_ as-17224 destroyed. 02418_ Shotgun destroyed. 02420_ The unstable cave ceiling collapses. 02422_ as-53743 destroyed. 02422_ as-31396 destroyed. 02422_ Shotgun destroyed. Map ----- +----------------------------------------------------+ | ?????????????????? ????### | | ?????????????????? ???## ### | | ?????????????????? #??# ##?# | | ???????????????????? #### ##??## | | ???????????????????????# ## ##????# | | ???????????????????????# #?????? | | ??????????????????????## #?????? | | ??????????????????????# #?????? | | ??????????????????????# ##?????? | | ??????????????????????# ##??????? | | ??????????????????????#### ##???????? | | ?????????????????????????## ######????????? | | ??????????????????????????# #?????????????? | | ??????????????????????????# #?????????????? | | ??????????????????????????# #?????????????? | | ??????????????????????##### #?????????????? | | ??????????????????????? ## #?????????????? | | ?????????????????????### ## #?????????????? | | ???????????????????## #% # #?????????????? | | ?????????????????### / ###???????????? | | ????????????????## # # ??????? | | ???????????????## # ##?????? | | ???????????????# #aa## ####### ##??????? | | ???????????????# a #????????#???????? | | ???????????????# a%%aa ##????????######### | | ???????????????# @=% # #???????## | | ??????????????# # a #?????????# | | ??????????????## #?????????# | | ?????????????? ##?????????## | | ?????????????## # # ####???????????## ## | | ??????????????# #####???????????????# ##? | | ??????????????#????????????????????# ##?? | | ???????????????????????????????????# #??? | | ???????????????????????????????????## ##??? | | ????????????????????????????????????######## | | ?????????????????????????????????????# | | ?????????????????????????????????????# | | ?????????????????????????????????????# #### | | ?????????????????????????????????????# #??? | | ????????????????????????????????????## ##?? | | ????????????????????????????????????# ##? | | ????????????????????????????????????## #? | | ????????????????????????????????????## #? | | ??????????????????????????????????### ##? | | ??????????????????????????????????# ###?? | | ?????????????????????????????????# ##???? | | ????????????????????????????????# ##????? | | ????????????????????????????????# ??????? | | ????????????????????????????????# #??????? | | ????????????????????????????????####???????? | +----------------------------------------------------+ Best States ------------- Heat Dissipation 25 Energy Generation 10 Energy Capacity 250 Matter Stores 300 Matter Capacity 300 Sight Range 16 Terrain Scan Density 10 Core Shielding 20 Evasion (%) 40 Recoil Reduction 2 Item Schematics ----------------- None Robot Schematics ------------------ None Fabricated ------------ Nothing Alien Tech Used ----------------- None Achievements -------------- None Challenges ------------ None Game ------ Seed CloakingMatterDissipator Manual? 0 Play Time 00:13:29 Cumulative 341.1 hours Start 2022.04.18 @ 22:46:50 End 2022.04.18 @ 23:08:35 Sessions 1 Manual Loads 0 Difficulty Rogue Special Mode None Game No. 504 Rogue 504 Adventurer 0 Explorer 0 Win Type - Total 6 Types 4/0/1/1/0/0/0/0/0 Lore% 81 Gallery% 84 Achievement% 66 Wizard Run 0 Options --------- ASCII 0 Keyboard 1 Movement Numpad Keybinds 0 Fullscreen 2 Font 24/Smallcaps Map View 76x50 Tactical HUD 1 Map Filters NONE Filters NONE Steam 1 RUN: 67b994ff-3d24-43e0-9c23-3f9e254042a1